{"text_format":"1","workbook":"xlsx","n_sheets":7,"sheets":["表紙","学生カード","自己採点シート","学習自己点検シート ","単位修得状況確認表（共通教育科目等）","単位修得状況確認表（専門教育科目）","累積グラフ"],"not_rendered":{"charts":9,"images":2,"macros":1,"external_links":0,"defined_names":5,"comments":0,"pivot_tables":0},"unopened":[],"bounds":{"document_bytes":16777216,"sheet_cells":100000,"rows_first":2000,"rows_last":500,"rows_between":2000,"halvings":0,"cell_chars":16384,"cell_head_chars":4096},"cells_cut":0,"cells_raw":0,"read":"whole","date_system":"1900"}

{"sheet":"表紙","index":0,"n_rows":34,"n_cols":2,"rows_kept":34,"cut":false,"hidden":false,"merged":[]}
[]
[]
[]
[]
[]
[]
[]
[]
[]
[]
[]
[null,"鹿児島大学工学部ポートフォリオ"]
[]
[]
[]
[]
[]
[]
[]
[]
[]
[]
[]
[]
[]
[]
[]
[]
[]
[]
[]
[null,"学科："]
[null,"氏名："]
[null,"学籍番号："]

{"sheet":"学生カード","index":1,"n_rows":62,"n_cols":10,"rows_kept":62,"cut":false,"hidden":false,"merged":[[9,0,16,0],[9,8,24,9],[14,5,14,7],[15,5,15,7],[17,0,24,0],[0,0,0,9],[3,0,3,1],[3,8,3,9],[4,6,8,6],[7,1,7,5],[31,0,42,0],[31,8,34,9],[40,6,40,9],[41,6,41,9],[22,5,22,7],[23,5,23,7],[25,0,30,0],[25,1,26,1],[25,2,26,2],[25,3,26,3],[25,4,26,7],[25,8,25,9],[26,8,26,9],[29,1,30,1],[29,2,30,2],[29,3,30,3],[43,0,54,0],[43,8,46,9],[52,6,52,9],[53,6,53,9],[55,0,55,9]]}
["学 生 カ ー ド"]
[]
["平成　　年度入学",null,null,null,null,null,null,null,null,"鹿児島大学工学部"]
[null,null,null,"学科","学籍番号",null,null,"指導教員名","㊞"]
[null,null,null,null,null,null,"男\n・\n女","本　籍"]
["ふりがな"]
["氏　　名",null,null,null,null,null,null,null,null,"都・道・府・県"]
["生年月日","昭和・平成 　　年　 　月　 　日生（　　　歳）"]
[null,"※戸籍記載のとおり",null,null,null,null,null,"※外国人は国籍名"]
["現 住 所",null,null,null,null,null,null,null,"写真貼付\n\nたて　５cm\nよこ　４cm"]
[null,"〒","－"]
[]
[]
[]
[null,null,null,null,"TEL","（　　　　　　　　　　　　）"]
[null,null,null,null,"携帯TEL","（　　　　　　　　　　　　）"]
[]
["住所変更"]
[null,"〒","－"]
[]
[]
[]
[null,null,null,null,"TEL","（　　　　　　　　　　　　）"]
[null,null,null,null,"携帯TEL","（　　　　　　　　　　　　）"]
[]
["履　　歴",null,"年","月","都・道・府・県",null,null,null,"　高等学校卒業等"]
[null,null,null,null,null,null,null,null,"　大学検定合格　"]
[null,null,"年","月"]
[null,null,"年","月"]
[null,null,"年","月"]
[]
["保証人\n（保護者）",null,null,null,null,null,null,null," 続柄"]
[null,"ふりがな"]
[null,"氏　名"]
[]
[]
[null,"住 所","〒","－"]
[]
[]
[]
[null,null,null,null,null,"T E L","（                                     )"]
[null,null,null,null,null,"携帯TEL","（                                     )"]
[]
["緊急時の\n連 絡 先\n（保証人\nとは別）",null,null,null,null,null,null,null," 続柄"]
[null,"ふりがな"]
[null,"氏　名"]
[]
[]
[null,"住 所","〒","－"]
[]
[]
[]
[null,null,null,null,null,"T E L","（                                     )"]
[null,null,null,null,null,"携帯TEL","（                                     )"]
[]
["大 学 側 記 入 欄"]
["　　年　　月　　日"]
["　　年　　月　　日"]
["注　１．本学生カードは２部作成し、１部を指導教員へ、もう１部は指導教員の認印を受けて４月１５日までに"]
["　　　　工学部学生係へ提出すること。"]
["　　２．住所を変更したら必ず工学部学生係へ申し出ること。"]
["　　３．本学生カードの記載情報は履修指導や生活指導の目的のみに使用されます。"]

{"sheet":"自己採点シート","index":2,"n_rows":24,"n_cols":21,"rows_kept":24,"cut":false,"hidden":false,"merged":[[16,2,16,5],[11,2,11,5],[12,2,12,5],[13,2,13,5],[14,2,14,5],[15,2,15,5],[23,2,23,5],[17,2,17,5],[18,2,18,5],[19,2,19,5],[20,2,20,5],[21,2,21,5],[22,2,22,5]]}
[]
[]
[null,"自己採点シート"]
[]
[null,null,null,null,null,null,null,"学籍番号",null,"氏名"]
[]
[null,"学生のみなさんへ"]
[null,null,"今期受講した科目に関して、以下の項目に対して自己採点をしてください。(１０点満点)"]
[]
[]
[]
[null,null,"項目",null,null,null,"2015年度\n前期","2015年度\n後期","2016年度\n前期","2016年度\n後期","2017年度\n前期","2017年度\n後期","2018年度\n前期","2018年度\n後期","2018年度\n前期","2018年度\n後期","2019年度\n前期","2019年度\n後期","2020年度\n前期","2020年度\n後期","卒業時"]
[null,1,"工学に関しての基礎知識\n（物理・化学・数学・情報など）"]
[null,2,"各工学分野での基礎知識\n（専門科目など）"]
[null,3,"人前での発表能力"]
[null,4,"人と話し合ったり議論する能力"]
[null,5,"チームの一員として取り組める（チームワーク）能力"]
[null,6,"英語、その他外国語による表現力"]
[null,7,"読書、講習会への参加、英会話や情報処理学習など大学以外での学習による自己啓発・生涯学習能力"]
[null,8,"社会性や国際感覚が身についているか。"]
[null,9,"倫理観、責任感がみについているか。"]
[null,10]
[null,11]
[null,12]

{"sheet":"学習自己点検シート ","index":3,"n_rows":67,"n_cols":12,"rows_kept":67,"cut":false,"hidden":false,"merged":[[7,2,7,12]]}
[]
[]
[null,"学習自己点検シート"]
[]
[null,null,null,null,null,null,null,null,null,"学籍番号",null,"氏名"]
[]
[null,"学生のみなさんへ"]
[null,null,"学生生活全般に関して自己点検をお願いしています。今期受講した科目に関して、以下の質問項目に答えてください。面談時、指導教員の先生方から回答に対する具体的なアドバイスを受けてください。"]
[]
[]
[null,"回答方法"]
[null,1,"今期の目標は達成できましたか。"]
[]
[]
[]
[]
[null,2,"講義への取り組みは積極的でしたか。また、積極的に取り組むことができなかった講義は具体的に何ですか。"]
[]
[]
[]
[]
[null,3,"講義毎に勉強方法がつかめていますか。"]
[]
[]
[]
[]
[null,4,"それぞれの講義の理解度は自分の目標に達していますか。理解度が足りないと感じている講義は何ですか。"]
[]
[]
[]
[]
[null,5,"平日（試験勉強以外）１日当たりの勉強時間（平均）はどのくらいですか。勉強時間が足りないと感じている講義は何ですか。"]
[]
[]
[]
[]
[null,6,"アルバイトと勉強は両立できましたか。"]
[]
[]
[]
[]
[null,7,"サークル活動と勉強は両立できましたか。"]
[]
[]
[]
[]
[null,8,"卒業後の進路についてどのように考えていますか。"]
[]
[]
[]
[]
[null,9,"その他、アドバイスが必要なことはありますか。"]
[]
[]
[]
[]
[null,10]
[]
[]
[]
[]
[null,11]
[]
[]
[]
[]
[null,12]

{"sheet":"単位修得状況確認表（共通教育科目等）","index":4,"n_rows":43,"n_cols":49,"rows_kept":43,"cut":false,"hidden":false,"merged":[[23,45,36,45],[23,46,29,46],[30,46,36,46],[42,31,42,32],[42,33,42,34],[21,35,21,36],[21,37,21,38],[41,23,41,24],[41,25,41,26],[41,27,41,28],[41,29,41,30],[41,31,41,32],[41,33,41,34],[21,23,21,24],[21,25,21,26],[21,31,21,32],[21,33,21,34],[41,35,41,36],[41,37,41,38],[42,37,42,38],[40,39,40,40],[42,35,42,36],[42,23,42,24],[42,25,42,26],[42,0,42,6],[42,7,42,8],[42,9,42,10],[42,11,42,12],[42,13,42,14],[42,15,42,16],[41,19,41,20],[41,21,41,22],[42,17,42,18],[42,19,42,20],[42,21,42,22],[41,0,41,6],[41,7,41,8],[41,9,41,10],[41,11,41,12],[41,13,41,14],[41,15,41,16],[41,17,41,18],[42,27,42,28],[42,29,42,30],[12,43,14,43],[39,0,39,6],[19,41,22,41],[21,4,22,5],[16,1,16,6],[21,15,21,16],[21,17,21,18],[35,4,35,5],[30,1,35,3],[36,1,36,6],[19,40,22,40],[20,31,20,34],[20,35,20,38],[19,7,19,38],[21,13,21,14],[33,4,33,5],[31,4,31,5],[32,4,32,5],[24,4,24,5],[34,4,34,5],[21,7,21,8],[21,9,21,10],[29,1,29,6],[20,7,20,10],[20,11,20,14],[23,1,28,3],[23,4,23,5],[2,7,2,38],[4,13,4,14],[4,15,4,16],[4,17,4,18],[4,35,4,36],[4,37,4,38],[4,27,4,28],[4,29,4,30],[4,31,4,32],[4,33,4,34],[11,1,15,3],[11,5,11,6],[12,5,12,6],[13,5,13,6],[14,5,14,6],[10,1,10,6],[6,4,6,6],[3,23,3,26],[9,4,9,6],[21,19,21,20],[21,27,21,28],[21,29,21,30],[3,35,3,38],[4,23,4,24],[3,27,3,30],[3,31,3,34],[1,0,1,41],[4,7,4,8],[4,9,4,10],[4,11,4,12],[2,0,3,6],[3,19,3,22],[4,19,4,20],[4,21,4,22],[4,25,4,26],[20,15,20,18],[20,19,20,22],[20,23,20,26],[21,11,21,12],[6,1,9,3],[37,0,37,6],[2,40,5,40],[2,41,5,41],[27,4,27,5],[28,4,28,5],[30,4,30,5],[6,0,16,0],[17,0,17,6],[7,4,7,6],[8,4,8,6],[26,4,26,5],[19,0,20,6],[23,0,36,0],[11,4,12,4],[13,4,15,4],[15,5,15,6],[25,4,25,5],[2,39,5,39],[3,7,3,10],[3,11,3,14],[3,15,3,18],[21,21,21,22],[19,39,22,39],[20,27,20,30]]}
[null,null,null,null,null,null,null,null,null,null,null,null,null,null,null,null,null,null,null,null,null,null,null,null,null,null,null,null,null,null,null,null,null,null,null,null,null,null,null,null,null,null,null,null,null,null,null,"A"]
["単位修得状況確認表（共通教育科目等）",null,null,null,null,null,null,null,null,null,null,null,null,null,null,null,null,null,null,null,null,null,null,null,null,null,null,null,null,null,null,null,null,null,null,null,null,null,null,null,null,null,null,null,null,null,null,"B"]
["共通教育科目・人間力養成プログラム",null,null,null,null,null,null,"取得単位数およびGP",null,null,null,null,null,null,null,null,null,null,null,null,null,null,null,null,null,null,null,null,null,null,null,null,null,null,null,null,null,null,null,"取得単位数","要修得\n単位数","累積GP",null,null,null,null,null,"C"]
[null,null,null,null,null,null,null,"　年次",null,null,null,"　年次",null,null,null,"　年次",null,null,null,"　年次",null,null,null,"　年次",null,null,null,"　年次",null,null,null,"　年次",null,null,null,"　年次",null,null,null,null,null,null,null,null,null,null,null,"D"]
[null,null,null,null,null,null,null,"１期",null,"２期",null,"３期",null,"４期",null,"５期",null,"６期",null,"７期",null,"８期",null,"９期",null,"10期",null,"11期",null,"12期",null,"13期",null,"14期",null,"15期",null,"16期",null,null,null,null,null,null,null,null,null,"F"]
[null,null,null,null,null,null,"　","単位","GP","単位","GP","単位","GP","単位","GP","単位","GP","単位","GP","単位","GP","単位","GP","単位","GP","単位","GP","単位","GP","単位","GP","単位","GP","単位","GP","単位","GP","単位","GP",null,null,null,null,null,null,null,null,"P"]
["共通教育科目","選択科目",null,null,"a 実践・判断・精神力",null,null,null,null,null,null,null,null,null,null,null,null,null,null,null,null,null,null,null,null,null,null,null,null,null,null,null,null,null,null,null,null,null,null,{"$f":"SUM(H7,J7,L7,N7,P7,R7,T7,V7,X7,Z7,AB7,AD7,AF7,AH7,AJ7,AL7)","v":0},4,null,null,"１．オレンジ枠に分野ごとの合計単位数を記入する。"]
[null,null,null,null,"b 知力（人文・社会科学）",null,null,null,null,null,null,null,null,null,null,null,null,null,null,null,null,null,null,null,null,null,null,null,null,null,null,null,null,null,null,null,null,null,null,0,6,null,null,"２．各科目の単位数を記入し、合計を計算する。"]
[null,null,null,null,"c 知力（自然科学）",null,null,null,null,null,null,null,null,null,null,null,null,null,null,null,null,null,null,null,null,null,null,null,null,null,null,null,null,null,null,null,null,null,null,0,6,null,null,"３．各科目のGPを記入し、合計を計算する。"]
[null,null,null,null,"うち、地域志向科目（選択必修科目）",null,null,null,null,null,null,null,null,null,null,null,null,null,null,null,null,null,null,null,null,null,null,null,null,null,null,null,null,null,null,null,null,null,null,{"$f":"SUM(H10,J10,L10,N10,P10,R10,T10,V10,X10,Z10,AB10,AD10,AF10,AH10,AJ10,AL10)","v":0},"［2］",null,null,"４．取得単位数を要取得単位数と比較する。"]
[null,"選択科目　計",null,null,null,null,null,null,null,null,null,null,null,null,null,null,null,null,null,null,null,null,null,null,null,null,null,null,null,null,null,null,null,null,null,null,null,null,null,0,16,{"$f":"SUM(I11,K11,M11,O11,Q11,S11,U11,W11,Y11,AA11,AC11,AE11,AG11,AI11,AK11,AM11)","v":0}]
[null,"選択必修\n科目",null,null,"d 身体力","理論",null,null,null,null,null,null,null,null,null,null,null,null,null,null,null,null,null,null,null,null,null,null,null,null,null,null,null,null,null,null,null,null,null,0,1]
[null,null,null,null,null,"実践",null,null,null,null,null,null,null,null,null,null,null,null,null,null,null,null,null,null,null,null,null,null,null,null,null,null,null,null,null,null,null,null,null,0,1,null,null,"※ 工学英語の成績は「第一外国語オープン」欄に記入する。"]
[null,null,null,null,"e コミュニケーション力","情報・通信を学ぶ",null,null,null,null,null,null,null,null,null,null,null,null,null,null,null,null,null,null,null,null,null,null,null,null,null,null,null,null,null,null,null,null,null,0,2]
[null,null,null,null,null,"第一外国語コア",null,null,null,null,null,null,null,null,null,null,null,null,null,null,null,null,null,null,null,null,null,null,null,null,null,null,null,null,null,null,null,null,null,0,4]
[null,null,null,null,null,"第一外国語オープン",null,null,null,null,null,null,null,null,null,null,null,null,null,null,null,null,null,null,null,null,null,null,null,null,null,null,null,null,null,null,null,null,null,0,4]
[null,"選択必修科目　計",null,null,null,null,null,null,null,null,null,null,null,null,null,null,null,null,null,null,null,null,null,null,null,null,null,null,null,null,null,null,null,null,null,null,null,null,null,0,12,{"$f":"SUM(I17,K17,M17,O17,Q17,S17,U17,W17,Y17,AA17,AC17,AE17,AG17,AI17,AK17,AM17)","v":0}]
["合計",null,null,null,null,null,null,null,null,null,null,null,null,null,null,null,null,null,null,null,null,null,null,null,null,null,null,null,null,null,null,null,null,null,null,null,null,null,null,0,28,{"$f":"SUM(I18,K18,M18,O18,Q18,S18,U18,W18,Y18,AA18,AC18,AE18,AG18,AI18,AK18,AM18)","v":0}]
[]
[" 基礎教育科目・専門基礎力養成プログラム",null,null,null,null,null,null,"履修科目の評価およびGP",null,null,null,null,null,null,null,null,null,null,null,null,null,null,null,null,null,null,null,null,null,null,null,null,null,null,null,null,null,null,null,"取得単位数","要修得\n単位数","累積GP"]
[null,null,null,null,null,null,null,"　年次",null,null,null,"　年次",null,null,null,"　年次",null,null,null,"　年次",null,null,null,"　年次",null,null,null,"　年次",null,null,null,"　年次",null,null,null,"　年次"]
[null,null,null,null,"授業科目",null,"単","１期",null,"２期",null,"３期",null,"４期",null,"５期",null,"６期",null,"７期",null,"８期",null,"９期",null,"10期",null,"11期",null,"12期",null,"13期",null,"14期",null,"15期",null,"16期"]
[null,null,null,null,null,null,"位","評価","GP","評価","GP","評価","GP","評価","GP","評価","GP","評価","GP","評価","GP","評価","GP","評価","GP","評価","GP","評価","GP","評価","GP","評価","GP","評価","GP","評価","GP","評価","GP"]
["基礎教育科目","単独必修科目",null,null,"微分積分学ＡⅠ",null,2,null,null,null,null,null,null,null,null,null,null,null,null,null,null,null,null,null,null,null,null,null,null,null,null,null,null,null,null,null,null,null,null,null,null,null,null,"１．黄色枠に各科目の評価を記入する。",null,"基礎教育科目","単独必修科目",589621032101,{"$f":"E24","v":"微分積分学ＡⅠ"}]
[null,null,null,null,"微分積分学ＡⅡ",null,2,null,null,null,null,null,null,null,null,null,null,null,null,null,null,null,null,null,null,null,null,null,null,null,null,null,null,null,null,null,null,null,null,null,null,null,null,"２．オレンジ枠に合計単位数を記入する。",null,null,null,589621032102,{"$f":"E25","v":"微分積分学ＡⅡ"}]
[null,null,null,null,"線形代数学Ⅰ",null,2,null,null,null,null,null,null,null,null,null,null,null,null,null,null,null,null,null,null,null,null,null,null,null,null,null,null,null,null,null,null,null,null,null,null,null,null,"３．各科目のGPを記入し、合計を計算する。",null,null,null,589621032106,"線形代数学Ⅰ"]
[null,null,null,null,"物理学基礎ＡⅠ",null,2,null,null,null,null,null,null,null,null,null,null,null,null,null,null,null,null,null,null,null,null,null,null,null,null,null,null,null,null,null,null,null,null,null,null,null,null,"４．取得単位数を要取得単位数と比較する。",null,null,null,589621033101,"物理学基礎ＡⅠ"]
[null,null,null,null,"物理学実験Ａ",null,2,null,null,null,null,null,null,null,null,null,null,null,null,null,null,null,null,null,null,null,null,null,null,null,null,null,null,null,null,null,null,null,null,null,null,null,null,null,null,null,null,589621033302,"物理学実験Ａ"]
[null,null,null,null,"化学実験Ａ",null,2,null,null,null,null,null,null,null,null,null,null,null,null,null,null,null,null,null,null,null,null,null,null,null,null,null,null,null,null,null,null,null,null,null,null,null,null,null,null,null,null,589621034302,"化学実験Ａ"]
[null,"単独必修科目　計",null,null,null,null,null,null,null,null,null,null,null,null,null,null,null,null,null,null,null,null,null,null,null,null,null,null,null,null,null,null,null,null,null,null,null,null,null,{"$f":"SUM(H30,J30,L30,N30,P30,R30,T30,V30,X30,Z30,AB30,AD30,AF30,AH30,AJ30,AL30)","v":0},12,{"$f":"SUM(I30,K30,M30,O30,Q30,S30,U30,W30,Y30,AA30,AC30,AE30,AG30,AI30,AK30,AM30)","v":0}]
[null,"選択必修科目",null,null,"線形代数学Ⅱ",null,2,null,null,null,null,null,null,null,null,null,null,null,null,null,null,null,null,null,null,null,null,null,null,null,null,null,null,null,null,null,null,null,null,null,null,null,null,null,null,null,"選択必修科目",589621032107,"線形代数学Ⅱ"]
[null,null,null,null,"物理学基礎ＡⅡ",null,2,null,null,null,null,null,null,null,null,null,null,null,null,null,null,null,null,null,null,null,null,null,null,null,null,null,null,null,null,null,null,null,null,null,null,null,null,null,null,null,null,589621033102,"物理学基礎ＡⅡ"]
[null,null,null,null,"統計学Ⅰ",null,2,null,null,null,null,null,null,null,null,null,null,null,null,null,null,null,null,null,null,null,null,null,null,null,null,null,null,null,null,null,null,null,null,null,null,null,null,null,null,null,null,589621031101,"統計学Ⅰ"]
[null,null,null,null,"生態学基礎",null,2,null,null,null,null,null,null,null,null,null,null,null,null,null,null,null,null,null,null,null,null,null,null,null,null,null,null,null,null,null,null,null,null,null,null,null,null,null,null,null,null,589621035101,"生態学基礎"]
[null,null,null,null,"生命科学実験B",null,1,null,null,null,null,null,null,null,null,null,null,null,null,null,null,null,null,null,null,null,null,null,null,null,null,null,null,null,null,null,null,null,null,null,null,null,null,null,null,null,null,589621035303,"生命科学実験B"]
[null,null,null,null,"地学実験B",null,1,null,null,null,null,null,null,null,null,null,null,null,null,null,null,null,null,null,null,null,null,null,null,null,null,null,null,null,null,null,null,null,null,null,null,null,null,null,null,null,null,589621036303,"地学実験B"]
[null,"選択必修科目　計",null,null,null,null,null,null,null,null,null,null,null,null,null,null,null,null,null,null,null,null,null,null,null,null,null,null,null,null,null,null,null,null,null,null,null,null,null,{"$f":"SUM(H37,J37,L37,N37,P37,R37,T37,V37,X37,Z37,AB37,AD37,AF37,AH37,AJ37,AL37)","v":0},4,{"$f":"SUM(I37,K37,M37,O37,Q37,S37,U37,W37,Y37,AA37,AC37,AE37,AG37,AI37,AK37,AM37)","v":0}]
["合計",null,null,null,null,null,null,null,null,null,null,null,null,null,null,null,null,null,null,null,null,null,null,null,null,null,null,null,null,null,null,null,null,null,null,null,null,null,null,{"$f":"SUM(H38,J38,L38,N38,P38,R38,T38,V38,X38,Z38,AB38,AD38,AF38,AH38,AJ38,AL38)","v":0},16,{"$f":"SUM(I38,K38,M38,O38,Q38,S38,U38,W38,Y38,AA38,AC38,AE38,AG38,AI38,AK38,AM38)","v":0}]
[]
["共通教育科目等合計",null,null,null,null,null,null,{"$f":"SUM(H18,H38)","v":0},0,0,0,0,0,0,0,0,0,0,0,0,0,0,0,0,0,0,0,0,0,0,0,0,0,0,0,0,0,0,0,{"$f":"SUM(H40,J40,L40,N40,P40,R40,T40,V40,X40,Z40,AB40,AD40,AF40,AH40,AJ40,AL40)","v":0},44,{"$f":"SUM(I40,K40,M40,O40,Q40,S40,U40,W40,Y40,AA40,AC40,AE40,AG40,AI40,AK40,AM40)","v":0}]
[]
["【共通教育科目等】評価Pの単位数",null,null,null,null,null,null,null,null,null,null,null,null,null,null,null,null,null,null,null,null,null,null,null,null,null,null,null,null,null,null,null,null,null,null,null,null,null,null,{"$f":"SUM(H42:AM42)","v":0}]
["【共通教育科目等】不合格（評価F）の単位数",null,null,null,null,null,null,null,null,null,null,null,null,null,null,null,null,null,null,null,null,null,null,null,null,null,null,null,null,null,null,null,null,null,null,null,null,null,null,{"$f":"SUM(H43:AM43)","v":0}]

{"sheet":"単位修得状況確認表（専門教育科目）","index":5,"n_rows":74,"n_cols":51,"rows_kept":74,"cut":false,"hidden":false,"merged":[[69,1,69,6],[70,1,70,6],[72,1,72,6],[73,1,73,6],[73,33,73,34],[73,21,73,22],[73,7,73,8],[73,9,73,10],[73,11,73,12],[73,13,73,14],[73,15,73,16],[73,17,73,18],[73,19,73,20],[72,7,72,8],[73,35,73,36],[73,37,73,38],[72,23,72,24],[72,25,72,26],[72,27,72,28],[72,29,72,30],[72,31,72,32],[72,33,72,34],[73,23,73,24],[73,25,73,26],[73,27,73,28],[73,29,73,30],[73,31,73,32],[72,35,72,36],[72,37,72,38],[6,1,24,1],[30,6,35,6],[27,1,35,1],[38,1,49,1],[52,0,66,0],[52,1,66,1],[27,0,35,0],[6,0,24,0],[38,0,49,0],[4,35,4,36],[2,7,2,38],[4,37,4,38],[4,31,4,32],[4,33,4,34],[3,31,3,34],[3,35,3,38],[4,23,4,24],[3,27,3,30],[4,27,4,28],[4,29,4,30],[4,15,4,16],[4,17,4,18],[4,19,4,20],[4,7,4,8],[1,0,1,41],[2,0,5,0],[2,1,5,1],[2,39,5,39],[3,7,3,10],[3,11,3,14],[3,15,3,18],[4,9,4,10],[4,11,4,12],[4,13,4,14],[2,41,5,41],[3,19,3,22],[4,25,4,26],[2,40,5,40],[4,21,4,22],[3,23,3,26],[16,50,17,50],[72,9,72,10],[72,11,72,12],[72,13,72,14],[72,15,72,16],[72,17,72,18],[6,46,24,46],[27,46,35,46],[38,46,49,46],[52,46,66,46],[72,19,72,20],[8,43,10,43],[12,43,14,43],[15,43,18,43],[71,39,71,40],[72,21,72,22]]}
[null,null,null,null,null,null,null,null,null,null,null,null,null,null,null,null,null,null,null,null,null,null,null,null,null,null,null,null,null,null,null,null,null,null,null,null,null,null,null,null,null,null,null,null,null,null,null,"A"]
["単位修得状況確認表（専門教育科目）",null,null,null,null,null,null,null,null,null,null,null,null,null,null,null,null,null,null,null,null,null,null,null,null,null,null,null,null,null,null,null,null,null,null,null,null,null,null,null,null,null,null,"１．黄色枠に各科目の評価を記入する。",null,null,null,"B"]
["科目群","区分","工 ","専","授","単","担","履修科目の評価およびGP",null,null,null,null,null,null,null,null,null,null,null,null,null,null,null,null,null,null,null,null,null,null,null,null,null,null,null,null,null,null,null,"取得単位数","要修得\n単位数","累積GP",null,"２．オレンジ枠に合計単位数を記入する。",null,null,null,"C"]
[null,null,"学 "," ","業"," ","当","　年次",null,null,null,"　年次",null,null,null,"　年次",null,null,null,"　年次",null,null,null,"　年次",null,null,null,"　年次",null,null,null,"　年次",null,null,null,"　年次",null,null,null,null,null,null,null,"３．各科目のGPを記入し、合計を計算する。",null,null,null,"D"]
[null,null,"基",null,"科",null,"教","１期",null,"２期",null,"３期",null,"４期",null,"５期",null,"６期",null,"７期",null,"８期",null,"９期",null,"10期",null,"11期",null,"12期",null,"13期",null,"14期",null,"15期",null,"16期",null,null,null,null,null,"４．取得単位数を要取得単位数と比較する。",null,null,null,"F"]
[null,null,"礎","門","目","位","員","評価","GP","評価","GP","評価","GP","評価","GP","評価","GP","評価","GP","評価","GP","評価","GP","評価","GP","評価","GP","評価","GP","評価","GP","評価","GP","評価","GP","評価","GP","評価","GP",null,null,null,null,null,null,null,null,"P"]
["必修科目","必\n修\n科\n目"," ","○","フレッシュマンセミナー",2,"全教員",null,null,null,null,null,null,null,null,null,null,null,null,null,null,null,null,null,null,null,null,null,null,null,null,null,null,null,null,null,null,null,null,null,null,null,null,null,null,null,"必\n修\n科\n目",250152511101,{"$f":"E7","v":"フレッシュマンセミナー"}]
[null,null,"○"," ","有機化学基礎",2,"門川",null,null,null,null,null,null,null,null,null,null,null,null,null,null,null,null,null,null,null,null,null,null,null,null,null,null,null,null,null,null,null,null,null,null,null,null,null,null,null,null,250093000002,{"$f":"E8","v":"有機化学基礎"}]
[null,null,null,"○","無機化学基礎",2,"大木",null,null,null,null,null,null,null,null,null,null,null,null,null,null,null,null,null,null,null,null,null,null,null,null,null,null,null,null,null,null,null,null,null,null,null,null,"※ 期をまたがって開講される科目は、成績の\n　出された期に記入する。例えば通年の場合\n　後期に記入する。",null,null,null,250093000001,{"$f":"E10","v":"物理化学基礎"}]
[null,null,"○",null,"物理化学基礎",2,"山元",null,null,null,null,null,null,null,null,null,null,null,null,null,null,null,null,null,null,null,null,null,null,null,null,null,null,null,null,null,null,null,null,null,null,null,null,null,null,null,null,250093000003,{"$f":"E9","v":"無機化学基礎"}]
[null,null,null,"○","応用数学Ｉ",2,"上田",null,null,null,null,null,null,null,null,null,null,null,null,null,null,null,null,null,null,null,null,null,null,null,null,null,null,null,null,null,null,null,null,null,null,null,null,null,null,null,null,250093000020,{"$f":"E14","v":"有機化学Ｉ"},"「Ⅰ」が異なるためヒットせず","有機化学Ⅰ（化） 250093000020"]
[null,null,"○"," ","物理化学Ⅰ",2,"上田",null,null,null,null,null,null,null,null,null,null,null,null,null,null,null,null,null,null,null,null,null,null,null,null,null,null,null,null,null,null,null,null,null,null,null,null,null,null,null,null,250093000004,{"$f":"E12","v":"物理化学Ⅰ"}]
[null,null,"○",null,"化学工学基礎",2,"髙梨",null,null,null,null,null,null,null,null,null,null,null,null,null,null,null,null,null,null,null,null,null,null,null,null,null,null,null,null,null,null,null,null,null,null,null,null,"※ 随意科目については、GPおよびGPAの計算に\n　含めない。また、進級・卒業要件には含まれない。",null,null,null,250093000006,{"$f":"E13","v":"化学工学基礎"}]
[null,null," ","○","有機化学Ｉ",2,"若尾、隅田",null,null,null,null,null,null,null,null,null,null,null,null,null,null,null,null,null,null,null,null,null,null,null,null,null,null,null,null,null,null,null,null,null,null,null,null,null,null,null,null,250093000007,{"$f":"E11","v":"応用数学Ｉ"},"「Ⅰ」が異なるためヒットせず","応用数学Ⅰ（化） 250093000007"]
[null,null,"○"," ","物理化学Ⅱ",2,"吉留",null,null,null,null,null,null,null,null,null,null,null,null,null,null,null,null,null,null,null,null,null,null,null,null,null,null,null,null,null,null,null,null,null,null,null,null,null,null,null,null,250093000005,{"$f":"E15","v":"物理化学Ⅱ"}]
[null,null,"○",null,"化学生命工学実験",3,"全教員",null,null,null,null,null,null,null,null,null,null,null,null,null,null,null,null,null,null,null,null,null,null,null,null,null,null,null,null,null,null,null,null,null,null,null,null,"※ 評価Pの科目については、GPおよびGPAの計算に含まない。しかしながら、進級・卒業要件の累積単位数には含まれることがある（インターンシップ等）。",null,null,null,250093000008,{"$f":"E16","v":"化学生命工学実験"}]
[null,null,null,"○","工学英語Ⅰ",2,"上田、ｽﾄｯｸﾃﾞｲﾙ ﾃﾞｨﾋﾞｯﾄﾞ ｱｼｭﾘｨ*",null,null,null,null,null,null,null,null,null,null,null,null,null,null,null,null,null,null,null,null,null,null,null,null,null,null,null,null,null,null,null,null,null,null,null,null,null,null,null,null,250072400001,{"$f":"E18","v":"化学情報分析実習"},"2件以上ヒット","化学情報分析実習 250072400001\n化学情報分析実習 250093000009"]
[null,null,null,"○","化学情報分析実習",3,"全教員",null,null,null,null,null,null,null,null,null,null,null,null,null,null,null,null,null,null,null,null,null,null,null,null,null,null,null,null,null,null,null,null,null,null,null,null,null,null,null,null,250093000010,{"$f":"E17","v":"工学英語Ⅰ"}]
[null,null," ","○","化学生命工学セミナーⅠ",2,"全教員",null,null,null,null,null,null,null,null,null,null,null,null,null,null,null,null,null,null,null,null,null,null,null,null,null,null,null,null,null,null,null,null,null,null,null,null,null,null,null,null,251330000001,{"$f":"E19","v":"化学生命工学セミナーⅠ"}]
[null,null," ","○","工学英語Ⅱ",2,"ﾗｰｷﾝｽ ｼﾞｪﾗﾙﾄﾞ ｱﾝﾄﾞﾘｭ-*",null,null,null,null,null,null,null,null,null,null,null,null,null,null,null,null,null,null,null,null,null,null,null,null,null,null,null,null,null,null,null,null,null,null,null,null,null,null,null,null,250093000011,"工学英語Ⅱ"]
[null,null,null,"○","化学生命工学セミナーⅡ",2,"全教員",null,null,null,null,null,null,null,null,null,null,null,null,null,null,null,null,null,null,null,null,null,null,null,null,null,null,null,null,null,null,null,null,null,null,null,null,null,null,null,null,251330000002,"化学生命工学セミナーⅡ"]
[null,null,null,null,"化学生命工学特別研究Ⅰ",2,"全教員",null,null,null,null,null,null,null,null,null,null,null,null,null,null,null,null,null,null,null,null,null,null,null,null,null,null,null,null,null,null,null,null,null,null,null,null,null,null,null,null,null,"化学生命工学特別研究Ⅰ"]
[null,null," ","○","工学倫理",2,"白樂*、奥*、井内*",null,null,null,null,null,null,null,null,null,null,null,null,null,null,null,null,null,null,null,null,null,null,null,null,null,null,null,null,null,null,null,null,null,null,null,null,null,null,null,null,250222000101,"工学倫理"]
[null,null," ","○","化学生命工学特別研究Ⅱ",2,"全教員",null,null,null,null,null,null,null,null,null,null,null,null,null,null,null,null,null,null,null,null,null,null,null,null,null,null,null,null,null,null,null,null,null,null,null,null,null,null,null,null,250222000101,"化学生命工学特別研究Ⅱ"]
[null,null," ","○","卒業論文",6,"全教員",null,null,null,null,null,null,null,null,null,null,null,null,null,null,null,null,null,null,null,null,null,null,null,null,null,null,null,null,null,null,null,null,null,null,null,null,null,null,null,null,250093000014,"卒業論文"]
["合計",null,null,null,null,null,null,null,null,null,null,null,null,null,null,null,null,null,null,null,null,null,null,null,null,null,null,null,null,null,null,null,null,null,null,null,null,null,null,{"$f":"SUM(H26,J26,L26,N26,P26,R26,T26,V26,X26,Z26,AB26,AD26,AF26,AH26,AJ26,AL26)","v":0},44,{"$f":"SUM(I26,K26,M26,O26,Q26,S26,U26,W26,Y26,AA26,AC26,AE26,AG26,AI26,AK26,AM26)","v":0}]
[]
["情報基礎科目群","選\n択\n科\n目\nＡ\n群\n",null,"○","情報システム",2,"未定",null,null,null,null,null,null,null,null,null,null,null,null,null,null,null,null,null,null,null,null,null,null,null,null,null,null,null,null,null,null,null,null,null,null,null,null,null,null,null,"選\n択\n科\n目\nＡ\n群\n",250093000015,{"$f":"E28","v":"情報システム"}]
[null,null," ","○","地球科学基礎",2,"浅野(敏)*、山城*、三隅*",null,null,null,null,null,null,null,null,null,null,null,null,null,null,null,null,null,null,null,null,null,null,null,null,null,null,null,null,null,null,null,null,null,null,null,null,null,null,null,null,250299110001,"地球科学基礎"]
[null,null," ","○","原子力・放射線と環境",2,"佐藤(紘)*",null,null,null,null,null,null,null,null,null,null,null,null,null,null,null,null,null,null,null,null,null,null,null,null,null,null,null,null,null,null,null,null,null,null,null,null,null,null,null,null,250042099101,"原子力・放射線と環境"]
[null,null," ","○","生産工学論",2,"全学科共通\n科目を参照",null,null,null,null,null,null,null,null,null,null,null,null,null,null,null,null,null,null,null,null,null,null,null,null,null,null,null,null,null,null,null,null,null,null,null,null,null,null,null,null,250299200001,"生産工学論"]
[null,null,null,null,"エレクトロニクス論",2,null,null,null,null,null,null,null,null,null,null,null,null,null,null,null,null,null,null,null,null,null,null,null,null,null,null,null,null,null,null,null,null,null,null,null,null,null,null,null,null,null,250228100002,"エレクトロニクス論"]
[null,null,null,null,"科学技術論",2,null,null,null,null,null,null,null,null,null,null,null,null,null,null,null,null,null,null,null,null,null,null,null,null,null,null,null,null,null,null,null,null,null,null,null,null,null,null,null,null,null,250228100006,"科学技術論"]
[null,null,null,null,"環境工学論",2,null,null,null,null,null,null,null,null,null,null,null,null,null,null,null,null,null,null,null,null,null,null,null,null,null,null,null,null,null,null,null,null,null,null,null,null,null,null,null,null,null,250228100004,"環境工学論"]
[null,null,null,null,"材料科学論",2,null,null,null,null,null,null,null,null,null,null,null,null,null,null,null,null,null,null,null,null,null,null,null,null,null,null,null,null,null,null,null,null,null,null,null,null,null,null,null,null,null,250228100005,"材料科学論"]
[null,null,null,null,"エネルギー工学論",2,null,null,null,null,null,null,null,null,null,null,null,null,null,null,null,null,null,null,null,null,null,null,null,null,null,null,null,null,null,null,null,null,null,null,null,null,null,null,null,null,null,250228100003,"エネルギー工学論"]
["合計",null,null,null,null,null,null,null,null,null,null,null,null,null,null,null,null,null,null,null,null,null,null,null,null,null,null,null,null,null,null,null,null,null,null,null,null,null,null,{"$f":"SUM(H37,J37,L37,N37,P37,R37,T37,V37,X37,Z37,AB37,AD37,AF37,AH37,AJ37,AL37)","v":0},6,{"$f":"SUM(I37,K37,M37,O37,Q37,S37,U37,W37,Y37,AA37,AC37,AE37,AG37,AI37,AK37,AM37)","v":0}]
[]
["ソフトウェアコア科目群","選\n択\n科\n目\nＢ\n群",null,"○","生物学概論",2,"橋本",null,null,null,null,null,null,null,null,null,null,null,null,null,null,null,null,null,null,null,null,null,null,null,null,null,null,null,null,null,null,null,null,null,null,null,null,null,null,null,"選\n択\n科\n目\nＢ\n群",251330000003,{"$f":"E39","v":"生物学概論"}]
[null,null,null,null,"量子化学",2,"肥後"]
[null,null,null,"○","生物化学Ⅰ",2,"橋本",null,null,null,null,null,null,null,null,null,null,null,null,null,null,null,null,null,null,null,null,null,null,null,null,null,null,null,null,null,null,null,null,null,null,null,null,null,null,null,null,250227000002,{"$f":"E41","v":"生物化学Ⅰ"}]
[null,null,null,null,"高分子化学",2,"山元",null,null,null,null,null,null,null,null,null,null,null,null,null,null,null,null,null,null,null,null,null,null,null,null,null,null,null,null,null,null,null,null,null,null,null,null,null,null,null,null,250093000026,{"$f":"E42","v":"高分子化学"}]
[null,null,null,null,"生体分子化学",2,"門川",null,null,null,null,null,null,null,null,null,null,null,null,null,null,null,null,null,null,null,null,null,null,null,null,null,null,null,null,null,null,null,null,null,null,null,null,null,null,null,null,251330000004,{"$f":"E48","v":"化学生命プログラミング"}]
[null,null,null,null,"無機化学",2,"鮫島*",null,null,null,null,null,null,null,null,null,null,null,null,null,null,null,null,null,null,null,null,null,null,null,null,null,null,null,null,null,null,null,null,null,null,null,null,null,null,null,null,250093000021,{"$f":"E43","v":"生体分子化学"}]
[null,null,null,null,"有機化学Ⅱ",2,"隅田",null,null,null,null,null,null,null,null,null,null,null,null,null,null,null,null,null,null,null,null,null,null,null,null,null,null,null,null,null,null,null,null,null,null,null,null,null,null,null,null,250093000022,{"$f":"E44","v":"無機化学"}]
[null,null,null,null,"生物化学Ⅱ",2,"橋本",null,null,null,null,null,null,null,null,null,null,null,null,null,null,null,null,null,null,null,null,null,null,null,null,null,null,null,null,null,null,null,null,null,null,null,null,null,null,null,null,250093000024,{"$f":"E45","v":"有機化学Ⅱ"}]
[null,null,null,null,"化学計測Ⅰ",2,"肥後",null,null,null,null,null,null,null,null,null,null,null,null,null,null,null,null,null,null,null,null,null,null,null,null,null,null,null,null,null,null,null,null,null,null,null,null,null,null,null,null,250093000027,{"$f":"E46","v":"生物化学Ⅱ"}]
[null,null," ","○","化学生命プログラミング",2,"満塩、肥後",null,null,null,null,null,null,null,null,null,null,null,null,null,null,null,null,null,null,null,null,null,null,null,null,null,null,null,null,null,null,null,null,null,null,null,null,null,null,null,null,250093000028,{"$f":"E47","v":"化学計測Ⅰ"}]
[null,null," ","○","分析化学",2,"吉留",null,null,null,null,null,null,null,null,null,null,null,null,null,null,null,null,null,null,null,null,null,null,null,null,null,null,null,null,null,null,null,null,null,null,null,null,null,null,null,null,250093000023,{"$f":"E49","v":"分析化学"}]
[null,null," ","○","有機化学Ⅲ",2,"隅田",null,null,null,null,null,null,null,null,null,null,null,null,null,null,null,null,null,null,null,null,null,null,null,null,null,null,null,null,null,null,null,null,null,null,null,null,null,null,null,null,250093000029,{"$f":"E50","v":"有機化学Ⅲ"}]
["合計",null,null,null,null,null,null,null,null,null,null,null,null,null,null,null,null,null,null,null,null,null,null,null,null,null,null,null,null,null,null,null,null,null,null,null,null,null,null,{"$f":"SUM(H51,J51,L51,N51,P51,R51,T51,V51,X51,Z51,AB51,AD51,AF51,AH51,AJ51,AL51)","v":0},18,{"$f":"SUM(I51,K51,M51,O51,Q51,S51,U51,W51,Y51,AA51,AC51,AE51,AG51,AI51,AK51,AM51)","v":0}]
[]
["情報システムコア科目群","選\n択\n科\n目\nＣ\n群"," ","○","化学生命工学キャリアデザイン",2,"瀬谷*、浅田*",null,null,null,null,null,null,null,null,null,null,null,null,null,null,null,null,null,null,null,null,null,null,null,null,null,null,null,null,null,null,null,null,null,null,null,null,null,null,null,"選\n択\n科\n目\nＣ\n群",250093000031,{"$f":"E53","v":"化学生命工学キャリアデザイン"}]
[null,null,null,null,"有機工業化学",2,"大木"]
[null,null,null,null,"界面科学",2,"金子"]
[null,null,null,"○","量子物理化学",2,"蔵脇*",null,null,null,null,null,null,null,null,null,null,null,null,null,null,null,null,null,null,null,null,null,null,null,null,null,null,null,null,null,null,null,null,null,null,null,null,null,null,null,null,250227011002,{"$f":"E57","v":"生体分子計測学"}]
[null,null,null,"○","生体分子計測学",2,"隅田",null,null,null,null,null,null,null,null,null,null,null,null,null,null,null,null,null,null,null,null,null,null,null,null,null,null,null,null,null,null,null,null,null,null,null,null,null,null,null,null,259752424101,{"$f":"E54","v":"有機工業化学"}]
[null,null,null,"○","分子生物学",2,"橋本、橋口",null,null,null,null,null,null,null,null,null,null,null,null,null,null,null,null,null,null,null,null,null,null,null,null,null,null,null,null,null,null,null,null,null,null,null,null,null,null,null,null,250093000025,{"$f":"E58","v":"分子生物学"}]
[null,null,null,"○","化学計測Ⅱ",2,"肥後",null,null,null,null,null,null,null,null,null,null,null,null,null,null,null,null,null,null,null,null,null,null,null,null,null,null,null,null,null,null,null,null,null,null,null,null,null,null,null,null,250227000130,{"$f":"E59","v":"化学計測Ⅱ"}]
[null,null,null,null,"医工学概論",2,"阿邊山*、小沢*、河原*、佐藤*、古川*、橋口",null,null,null,null,null,null,null,null,null,null,null,null,null,null,null,null,null,null,null,null,null,null,null,null,null,null,null,null,null,null,null,null,null,null,null,null,null,null,null,null,250093000039,{"$f":"E56","v":"量子物理化学"}]
[null,null,null,null,"反応速度論",2,"甲斐*",null,null,null,null,null,null,null,null,null,null,null,null,null,null,null,null,null,null,null,null,null,null,null,null,null,null,null,null,null,null,null,null,null,null,null,null,null,null,null,null,250224000120,{"$f":"E62","v":"機能材料化学"}]
[null,null,null,null,"機能材料化学",2,"金子",null,null,null,null,null,null,null,null,null,null,null,null,null,null,null,null,null,null,null,null,null,null,null,null,null,null,null,null,null,null,null,null,null,null,null,null,null,null,null,null,250224011001,{"$f":"E61","v":"反応速度論"}]
[null,null,null,null,"環境化学工学",2,"高梨",null,null,null,null,null,null,null,null,null,null,null,null,null,null,null,null,null,null,null,null,null,null,null,null,null,null,null,null,null,null,null,null,null,null,null,null,null,null,null,null,250092800011,{"$f":"E64","v":"移動現象基礎"}]
[null,null," ","○","移動現象基礎",2,"武井*",null,null,null,null,null,null,null,null,null,null,null,null,null,null,null,null,null,null,null,null,null,null,null,null,null,null,null,null,null,null,null,null,null,null,null,null,null,null,null,null,259752414105,{"$f":"E63","v":"環境化学工学"}]
[null,null," ","○","微生物学",2,"橋本",null,null,null,null,null,null,null,null,null,null,null,null,null,null,null,null,null,null,null,null,null,null,null,null,null,null,null,null,null,null,null,null,null,null,null,null,null,null,null,null,250093000033,{"$f":"E65","v":"微生物学"}]
[null,null,null,null,"化学生命工学研究基礎",3,"全教員"]
[null,null," ","○","学外実習",1,"全教員",null,null,null,null,null,null,null,null,null,null,null,null,null,null,null,null,null,null,null,null,null,null,null,null,null,null,null,null,null,null,null,null,null,null,null,null,null,null,null,null,250093000030,{"$f":"E67","v":"学外実習"}]
["合計",null,null,null,null,null,null,null,null,null,null,null,null,null,null,null,null,null,null,null,null,null,null,null,null,null,null,null,null,null,null,null,null,null,null,null,null,null,null,{"$f":"SUM(H68,J68,L68,N68,P68,R68,T68,V68,X68,Z68,AB68,AD68,AF68,AH68,AJ68,AL68)","v":0},12,{"$f":"SUM(I68,K68,M68,O68,Q68,S68,U68,W68,Y68,AA68,AC68,AE68,AG68,AI68,AK68,AM68)","v":0}]
[]
["専門教育科目合計","専門教育科目合計",null,null,null,null,null,{"$f":"SUM(H26,H37,H51,H68)","v":0},{"$f":"SUM(I26,I37,I51,I68)","v":0},{"$f":"SUM(J26,J37,J51,J68)","v":0},{"$f":"SUM(K26,K37,K51,K68)","v":0},{"$f":"SUM(L26,L37,L51,L68)","v":0},0,0,0,0,0,0,0,0,0,{"$f":"SUM(V26,V37,V51,V68)","v":0},0,0,0,0,0,0,0,0,0,0,0,0,0,0,0,0,0,{"$f":"SUM(H70,J70,L70,N70,P70,R70,T70,V70,X70,Z70,AB70,AD70,AF70,AH70,AJ70,AL70)","v":0},80,{"$f":"SUM(I70,K70,M70,O70,Q70,S70,U70,W70,Y70,AA70,AC70,AE70,AG70,AI70,AK70,AM70)","v":0}]
["修得総単位数","修得総単位数",null,null,null,null,null,{"$f":"'単位修得状況確認表（共通教育科目等）'!H40+'単位修得状況確認表（専門教育科目）'!H70","v":0},{"$f":"'単位修得状況確認表（共通教育科目等）'!I40+'単位修得状況確認表（専門教育科目）'!I70","v":0},{"$f":"'単位修得状況確認表（共通教育科目等）'!J40+'単位修得状況確認表（専門教育科目）'!J70","v":0},{"$f":"'単位修得状況確認表（共通教育科目等）'!K40+'単位修得状況確認表（専門教育科目）'!K70","v":0},{"$f":"'単位修得状況確認表（共通教育科目等）'!L40+'単位修得状況確認表（専門教育科目）'!L70","v":0},{"$f":"'単位修得状況確認表（共通教育科目等）'!M40+'単位修得状況確認表（専門教育科目）'!M70","v":0},{"$f":"'単位修得状況確認表（共通教育科目等）'!N40+'単位修得状況確認表（専門教育科目）'!N70","v":0},{"$f":"'単位修得状況確認表（共通教育科目等）'!O40+'単位修得状況確認表（専門教育科目）'!O70","v":0},{"$f":"'単位修得状況確認表（共通教育科目等）'!P40+'単位修得状況確認表（専門教育科目）'!P70","v":0},{"$f":"'単位修得状況確認表（共通教育科目等）'!Q40+'単位修得状況確認表（専門教育科目）'!Q70","v":0},{"$f":"'単位修得状況確認表（共通教育科目等）'!R40+'単位修得状況確認表（専門教育科目）'!R70","v":0},{"$f":"'単位修得状況確認表（共通教育科目等）'!S40+'単位修得状況確認表（専門教育科目）'!S70","v":0},{"$f":"'単位修得状況確認表（共通教育科目等）'!T40+'単位修得状況確認表（専門教育科目）'!T70","v":0},{"$f":"'単位修得状況確認表（共通教育科目等）'!U40+'単位修得状況確認表（専門教育科目）'!U70","v":0},{"$f":"'単位修得状況確認表（共通教育科目等）'!V40+'単位修得状況確認表（専門教育科目）'!V70","v":0},{"$f":"'単位修得状況確認表（共通教育科目等）'!W40+'単位修得状況確認表（専門教育科目）'!W70","v":0},{"$f":"'単位修得状況確認表（共通教育科目等）'!X40+'単位修得状況確認表（専門教育科目）'!X70","v":0},{"$f":"'単位修得状況確認表（共通教育科目等）'!Y40+'単位修得状況確認表（専門教育科目）'!Y70","v":0},{"$f":"'単位修得状況確認表（共通教育科目等）'!Z40+'単位修得状況確認表（専門教育科目）'!Z70","v":0},{"$f":"'単位修得状況確認表（共通教育科目等）'!AA40+'単位修得状況確認表（専門教育科目）'!AA70","v":0},{"$f":"'単位修得状況確認表（共通教育科目等）'!AB40+'単位修得状況確認表（専門教育科目）'!AB70","v":0},{"$f":"'単位修得状況確認表（共通教育科目等）'!AC40+'単位修得状況確認表（専門教育科目）'!AC70","v":0},{"$f":"'単位修得状況確認表（共通教育科目等）'!AD40+'単位修得状況確認表（専門教育科目）'!AD70","v":0},{"$f":"'単位修得状況確認表（共通教育科目等）'!AE40+'単位修得状況確認表（専門教育科目）'!AE70","v":0},{"$f":"'単位修得状況確認表（共通教育科目等）'!AF40+'単位修得状況確認表（専門教育科目）'!AF70","v":0},{"$f":"'単位修得状況確認表（共通教育科目等）'!AG40+'単位修得状況確認表（専門教育科目）'!AG70","v":0},{"$f":"'単位修得状況確認表（共通教育科目等）'!AH40+'単位修得状況確認表（専門教育科目）'!AH70","v":0},{"$f":"'単位修得状況確認表（共通教育科目等）'!AI40+'単位修得状況確認表（専門教育科目）'!AI70","v":0},{"$f":"'単位修得状況確認表（共通教育科目等）'!AJ40+'単位修得状況確認表（専門教育科目）'!AJ70","v":0},{"$f":"'単位修得状況確認表（共通教育科目等）'!AK40+'単位修得状況確認表（専門教育科目）'!AK70","v":0},{"$f":"'単位修得状況確認表（共通教育科目等）'!AL40+'単位修得状況確認表（専門教育科目）'!AL70","v":0},{"$f":"'単位修得状況確認表（共通教育科目等）'!AM40+'単位修得状況確認表（専門教育科目）'!AM70","v":0},{"$f":"SUM(H71,J71,L71,N71,P71,R71,T71,V71,X71,Z71,AB71,AD71,AF71,AH71,AJ71,AL71)","v":0},124,{"$f":"SUM(I71,K71,M71,O71,Q71,S71,U71,W71,Y71,AA71,AC71,AE71,AG71,AI71,AK71,AM71)","v":0}]
[null,null,null,null,null,null,null,null,null,null,null,null,null,null,null,null,null,null,null,null,null,null,null,null,null,null,null,null,null,null,null,null,null,null,null,null,null,null,null,"累積GPA",null,{"$f":"IF(AN71-AN73>0,AP71/(AN71-AN73-'単位修得状況確認表（共通教育科目等）'!AN42+AN74+'単位修得状況確認表（共通教育科目等）'!AN43),\"\")","v":""}]
["【専門教育科目】評価Pの単位数","【専門教育科目】評価Pの単位数",null,null,null,null,null,null,null,null,null,null,null,null,null,null,null,null,null,null,null,null,null,null,null,null,null,null,null,null,null,null,null,null,null,null,null,null,null,{"$f":"SUM(H73:AM73)","v":0}]
["【専門教育科目】不合格（評価F）の単位数","【専門教育科目】不合格（評価F）の単位数",null,null,null,null,null,null,null,null,null,null,null,null,null,null,null,null,null,null,null,null,null,null,null,null,null,null,null,null,null,null,null,null,null,null,null,null,null,{"$f":"SUM(H74:AM74)","v":0}]

{"sheet":"累積グラフ","index":6,"n_rows":220,"n_cols":8,"rows_kept":220,"cut":false,"hidden":false,"merged":[[65,2,65,3],[65,4,65,5],[3,2,3,3],[3,4,3,5],[3,6,3,7],[34,2,34,3],[34,4,34,5]]}
[]
[null,"共通教育科目（選択科目）"]
[]
[null,null,"a 実践・判断・精神力",null,"b 知力（人文・社会科学）",null,"c 知力（自然科学）"]
[null,null,"取得単位数","累積取得単位数","取得単位数","累積取得単位数","取得単位数","累積取得単位数"]
[null,"1年前期終了時",{"$f":"'単位修得状況確認表（共通教育科目等）'!H7","v":0},{"$f":"SUM(C$6:C6)","v":0},{"$f":"'単位修得状況確認表（共通教育科目等）'!H8","v":0},{"$f":"SUM(E$6:E6)","v":0},{"$f":"'単位修得状況確認表（共通教育科目等）'!H9","v":0},{"$f":"SUM(G$6:G6)","v":0}]
[null,"1年後期終了時",{"$f":"'単位修得状況確認表（共通教育科目等）'!J7","v":0},{"$f":"SUM(C$6:C7)","v":0},{"$f":"'単位修得状況確認表（共通教育科目等）'!J8","v":0},{"$f":"SUM(E$6:E7)","v":0},{"$f":"'単位修得状況確認表（共通教育科目等）'!J9","v":0},{"$f":"SUM(G$6:G7)","v":0}]
[null,"2年前期終了時",{"$f":"'単位修得状況確認表（共通教育科目等）'!L7","v":0},{"$f":"SUM(C$6:C8)","v":0},{"$f":"'単位修得状況確認表（共通教育科目等）'!L8","v":0},{"$f":"SUM(E$6:E8)","v":0},{"$f":"'単位修得状況確認表（共通教育科目等）'!L9","v":0},{"$f":"SUM(G$6:G8)","v":0}]
[null,"2年後期終了時",{"$f":"'単位修得状況確認表（共通教育科目等）'!N7","v":0},{"$f":"SUM(C$6:C9)","v":0},{"$f":"'単位修得状況確認表（共通教育科目等）'!N8","v":0},{"$f":"SUM(E$6:E9)","v":0},{"$f":"'単位修得状況確認表（共通教育科目等）'!N9","v":0},{"$f":"SUM(G$6:G9)","v":0}]
[null,"３年前期終了時",{"$f":"'単位修得状況確認表（共通教育科目等）'!P7","v":0},{"$f":"SUM(C$6:C10)","v":0},{"$f":"'単位修得状況確認表（共通教育科目等）'!P8","v":0},{"$f":"SUM(E$6:E10)","v":0},{"$f":"'単位修得状況確認表（共通教育科目等）'!P9","v":0},{"$f":"SUM(G$6:G10)","v":0}]
[null,"３年後期終了時",{"$f":"'単位修得状況確認表（共通教育科目等）'!R7","v":0},{"$f":"SUM(C$6:C11)","v":0},{"$f":"'単位修得状況確認表（共通教育科目等）'!R8","v":0},{"$f":"SUM(E$6:E11)","v":0},{"$f":"'単位修得状況確認表（共通教育科目等）'!R9","v":0},{"$f":"SUM(G$6:G11)","v":0}]
[null,"4年前期終了時",{"$f":"'単位修得状況確認表（共通教育科目等）'!T7","v":0},{"$f":"SUM(C$6:C12)","v":0},{"$f":"'単位修得状況確認表（共通教育科目等）'!T8","v":0},{"$f":"SUM(E$6:E12)","v":0},{"$f":"'単位修得状況確認表（共通教育科目等）'!T9","v":0},{"$f":"SUM(G$6:G12)","v":0}]
[null,"4年後期終了時",{"$f":"'単位修得状況確認表（共通教育科目等）'!V7","v":0},{"$f":"SUM(C$6:C13)","v":0},{"$f":"'単位修得状況確認表（共通教育科目等）'!V8","v":0},{"$f":"SUM(E$6:E13)","v":0},{"$f":"'単位修得状況確認表（共通教育科目等）'!V9","v":0},{"$f":"SUM(G$6:G13)","v":0}]
[]
[]
[]
[]
[]
[]
[]
[]
[]
[]
[]
[]
[]
[]
[]
[]
[]
[]
[]
[null,"共通教育科目（選択必修科目）"]
[]
[null,null,"d 身体力",null,"e コミュニケーション力"]
[null,null,"取得単位数","累積取得単位数","取得単位数","累積取得単位数"]
[null,"1年前期終了時",{"$f":"SUM('単位修得状況確認表（共通教育科目等）'!H12:H13)","v":0},{"$f":"SUM(C$37:C37)","v":0},{"$f":"SUM('単位修得状況確認表（共通教育科目等）'!H14:H16)","v":0},{"$f":"SUM(E$37:E37)","v":0}]
[null,"1年後期終了時",{"$f":"SUM('単位修得状況確認表（共通教育科目等）'!J12:J13)","v":0},{"$f":"SUM(C$37:C38)","v":0},{"$f":"SUM('単位修得状況確認表（共通教育科目等）'!J14:J16)","v":0},{"$f":"SUM(E$37:E38)","v":0}]
[null,"2年前期終了時",{"$f":"SUM('単位修得状況確認表（共通教育科目等）'!L12:L13)","v":0},{"$f":"SUM(C$37:C39)","v":0},{"$f":"SUM('単位修得状況確認表（共通教育科目等）'!L14:L16)","v":0},{"$f":"SUM(E$37:E39)","v":0}]
[null,"2年後期終了時",{"$f":"SUM('単位修得状況確認表（共通教育科目等）'!N12:N13)","v":0},{"$f":"SUM(C$37:C40)","v":0},{"$f":"SUM('単位修得状況確認表（共通教育科目等）'!N14:N16)","v":0},{"$f":"SUM(E$37:E40)","v":0}]
[null,"３年前期終了時",{"$f":"SUM('単位修得状況確認表（共通教育科目等）'!P12:P13)","v":0},{"$f":"SUM(C$37:C41)","v":0},{"$f":"SUM('単位修得状況確認表（共通教育科目等）'!P14:P16)","v":0},{"$f":"SUM(E$37:E41)","v":0}]
[null,"３年後期終了時",{"$f":"SUM('単位修得状況確認表（共通教育科目等）'!R12:R13)","v":0},{"$f":"SUM(C$37:C42)","v":0},{"$f":"SUM('単位修得状況確認表（共通教育科目等）'!R14:R16)","v":0},{"$f":"SUM(E$37:E42)","v":0}]
[null,"4年前期終了時",{"$f":"SUM('単位修得状況確認表（共通教育科目等）'!T12:T13)","v":0},{"$f":"SUM(C$37:C43)","v":0},{"$f":"SUM('単位修得状況確認表（共通教育科目等）'!T14:T16)","v":0},{"$f":"SUM(E$37:E43)","v":0}]
[null,"4年後期終了時",{"$f":"SUM('単位修得状況確認表（共通教育科目等）'!V12:V13)","v":0},{"$f":"SUM(C$37:C44)","v":0},{"$f":"SUM('単位修得状況確認表（共通教育科目等）'!V14:V16)","v":0},{"$f":"SUM(E$37:E44)","v":0}]
[]
[]
[]
[]
[]
[]
[]
[]
[]
[]
[]
[]
[]
[]
[]
[]
[]
[]
[]
[null,"基礎教育科目"]
[]
[null,null,"単独必修科目",null,"選択必修科目"]
[null,null,"取得単位数","累積取得単位数","取得単位数","累積取得単位数"]
[null,"1年前期終了時",{"$f":"'単位修得状況確認表（共通教育科目等）'!H30","v":0},{"$f":"SUM(C$68:C68)","v":0},{"$f":"'単位修得状況確認表（共通教育科目等）'!H37","v":0},{"$f":"SUM(E$68:E68)","v":0}]
[null,"1年後期終了時",{"$f":"'単位修得状況確認表（共通教育科目等）'!J30","v":0},{"$f":"SUM(C$68:C69)","v":0},{"$f":"'単位修得状況確認表（共通教育科目等）'!J37","v":0},{"$f":"SUM(E$68:E69)","v":0}]
[null,"2年前期終了時",{"$f":"'単位修得状況確認表（共通教育科目等）'!L30","v":0},{"$f":"SUM(C$68:C70)","v":0},{"$f":"'単位修得状況確認表（共通教育科目等）'!L37","v":0},{"$f":"SUM(E$68:E70)","v":0}]
[null,"2年後期終了時",{"$f":"'単位修得状況確認表（共通教育科目等）'!N30","v":0},{"$f":"SUM(C$68:C71)","v":0},{"$f":"'単位修得状況確認表（共通教育科目等）'!N37","v":0},{"$f":"SUM(E$68:E71)","v":0}]
[null,"３年前期終了時",{"$f":"'単位修得状況確認表（共通教育科目等）'!P30","v":0},{"$f":"SUM(C$68:C72)","v":0},{"$f":"'単位修得状況確認表（共通教育科目等）'!P37","v":0},{"$f":"SUM(E$68:E72)","v":0}]
[null,"３年後期終了時",{"$f":"'単位修得状況確認表（共通教育科目等）'!R30","v":0},{"$f":"SUM(C$68:C73)","v":0},{"$f":"'単位修得状況確認表（共通教育科目等）'!R37","v":0},{"$f":"SUM(E$68:E73)","v":0}]
[null,"4年前期終了時",{"$f":"'単位修得状況確認表（共通教育科目等）'!T30","v":0},{"$f":"SUM(C$68:C74)","v":0},{"$f":"'単位修得状況確認表（共通教育科目等）'!T37","v":0},{"$f":"SUM(E$68:E74)","v":0}]
[null,"4年後期終了時",{"$f":"'単位修得状況確認表（共通教育科目等）'!V30","v":0},{"$f":"SUM(C$68:C75)","v":0},{"$f":"'単位修得状況確認表（共通教育科目等）'!V37","v":0},{"$f":"SUM(E$68:E75)","v":0}]
[]
[]
[]
[]
[]
[]
[]
[]
[]
[]
[]
[]
[]
[]
[]
[]
[]
[]
[]
[]
[]
[null,"必修科目"]
[]
[null,null,"取得単位数","累積取得単位数"]
[null,"1年前期終了時",{"$f":"'単位修得状況確認表（専門教育科目）'!H26","v":0},{"$f":"SUM(C$100:C100)","v":0}]
[null,"1年後期終了時",{"$f":"'単位修得状況確認表（専門教育科目）'!J26","v":0},{"$f":"SUM(C$100:C101)","v":0}]
[null,"2年前期終了時",{"$f":"'単位修得状況確認表（専門教育科目）'!L26","v":0},{"$f":"SUM(C$100:C102)","v":0}]
[null,"2年後期終了時",{"$f":"'単位修得状況確認表（専門教育科目）'!N26","v":0},{"$f":"SUM(C$100:C103)","v":0}]
[null,"３年前期終了時",{"$f":"'単位修得状況確認表（専門教育科目）'!P26","v":0},{"$f":"SUM(C$100:C104)","v":0}]
[null,"３年後期終了時",{"$f":"'単位修得状況確認表（専門教育科目）'!R26","v":0},{"$f":"SUM(C$100:C105)","v":0}]
[null,"4年前期終了時",{"$f":"'単位修得状況確認表（専門教育科目）'!T26","v":0},{"$f":"SUM(C$100:C106)","v":0}]
[null,"4年後期終了時",{"$f":"'単位修得状況確認表（専門教育科目）'!V26","v":0},{"$f":"SUM(C$100:C107)","v":0}]
[]
[]
[]
[]
[]
[]
[]
[]
[]
[]
[]
[]
[]
[null,"選択科目A群"]
[]
[null,null,"取得単位数","累積取得単位数"]
[null,"1年前期終了時",{"$f":"'単位修得状況確認表（専門教育科目）'!H37","v":0},{"$f":"SUM(C$124:C124)","v":0}]
[null,"1年後期終了時",{"$f":"'単位修得状況確認表（専門教育科目）'!J37","v":0},{"$f":"SUM(C$124:C125)","v":0}]
[null,"2年前期終了時",{"$f":"'単位修得状況確認表（専門教育科目）'!L37","v":0},{"$f":"SUM(C$124:C126)","v":0}]
[null,"2年後期終了時",{"$f":"'単位修得状況確認表（専門教育科目）'!N37","v":0},{"$f":"SUM(C$124:C127)","v":0}]
[null,"３年前期終了時",{"$f":"'単位修得状況確認表（専門教育科目）'!P37","v":0},{"$f":"SUM(C$124:C128)","v":0}]
[null,"３年後期終了時",{"$f":"'単位修得状況確認表（専門教育科目）'!R37","v":0},{"$f":"SUM(C$124:C129)","v":0}]
[null,"4年前期終了時",{"$f":"'単位修得状況確認表（専門教育科目）'!T37","v":0},{"$f":"SUM(C$124:C130)","v":0}]
[null,"4年後期終了時",{"$f":"'単位修得状況確認表（専門教育科目）'!V37","v":0},{"$f":"SUM(C$124:C131)","v":0}]
[]
[]
[]
[]
[]
[]
[]
[null,"選択科目B群"]
[]
[null,null,"取得単位数","累積取得単位数"]
[null,"1年前期終了時",{"$f":"'単位修得状況確認表（専門教育科目）'!H51","v":0},{"$f":"SUM(C$142:C142)","v":0}]
[null,"1年後期終了時",{"$f":"'単位修得状況確認表（専門教育科目）'!J51","v":0},{"$f":"SUM(C$142:C143)","v":0}]
[null,"2年前期終了時",{"$f":"'単位修得状況確認表（専門教育科目）'!L51","v":0},{"$f":"SUM(C$142:C144)","v":0}]
[null,"2年後期終了時",{"$f":"'単位修得状況確認表（専門教育科目）'!N51","v":0},{"$f":"SUM(C$142:C145)","v":0}]
[null,"３年前期終了時",{"$f":"'単位修得状況確認表（専門教育科目）'!P51","v":0},{"$f":"SUM(C$142:C146)","v":0}]
[null,"３年後期終了時",{"$f":"'単位修得状況確認表（専門教育科目）'!R51","v":0},{"$f":"SUM(C$142:C147)","v":0}]
[null,"4年前期終了時",{"$f":"'単位修得状況確認表（専門教育科目）'!T51","v":0},{"$f":"SUM(C$142:C148)","v":0}]
[null,"4年後期終了時",{"$f":"'単位修得状況確認表（専門教育科目）'!V51","v":0},{"$f":"SUM(C$142:C149)","v":0}]
[]
[]
[]
[]
[]
[]
[]
[null,"選択科目C群"]
[]
[null,null,"取得単位数","累積取得単位数"]
[null,"1年前期終了時",{"$f":"'単位修得状況確認表（専門教育科目）'!H68","v":0},{"$f":"SUM(C$160:C160)","v":0}]
[null,"1年後期終了時",{"$f":"'単位修得状況確認表（専門教育科目）'!J68","v":0},{"$f":"SUM(C$160:C161)","v":0}]
[null,"2年前期終了時",{"$f":"'単位修得状況確認表（専門教育科目）'!L68","v":0},{"$f":"SUM(C$160:C162)","v":0}]
[null,"2年後期終了時",{"$f":"'単位修得状況確認表（専門教育科目）'!N68","v":0},{"$f":"SUM(C$160:C163)","v":0}]
[null,"３年前期終了時",{"$f":"'単位修得状況確認表（専門教育科目）'!P68","v":0},{"$f":"SUM(C$160:C164)","v":0}]
[null,"３年後期終了時",{"$f":"'単位修得状況確認表（専門教育科目）'!R68","v":0},{"$f":"SUM(C$160:C165)","v":0}]
[null,"4年前期終了時",{"$f":"'単位修得状況確認表（専門教育科目）'!T68","v":0},{"$f":"SUM(C$160:C166)","v":0}]
[null,"4年後期終了時",{"$f":"'単位修得状況確認表（専門教育科目）'!V68","v":0},{"$f":"SUM(C$160:C167)","v":0}]
[]
[]
[]
[]
[]
[]
[]
[]
[]
[]
[null,"累積単位数"]
[]
[null,null,"取得単位数","累積取得単位数"]
[null,"1年前期終了時",{"$f":"SUM(C6,E6,G6,C37,E37,C68,E68,C100,C124,C142,C160)","v":0},{"$f":"SUM(C$181:C181)","v":0}]
[null,"1年後期終了時",0,{"$f":"SUM(C$181:C182)","v":0}]
[null,"2年前期終了時",0,{"$f":"SUM(C$181:C183)","v":0}]
[null,"2年後期終了時",0,{"$f":"SUM(C$181:C184)","v":0}]
[null,"３年前期終了時",0,{"$f":"SUM(C$181:C185)","v":0}]
[null,"３年後期終了時",0,{"$f":"SUM(C$181:C186)","v":0}]
[null,"4年前期終了時",0,{"$f":"SUM(C$181:C187)","v":0}]
[null,"4年後期終了時",0,{"$f":"SUM(C$181:C188)","v":0}]
[]
[]
[]
[]
[]
[]
[]
[]
[]
[]
[]
[]
[]
[]
[]
[]
[]
[]
[]
[]
[]
[null,"GPA"]
[]
[null,null,"累積GP","累積GPA","GPA累積単位数","累積P","累積F"]
[null,"1年前期終了時",{"$f":"'単位修得状況確認表（共通教育科目等）'!I18+'単位修得状況確認表（共通教育科目等）'!I38+'単位修得状況確認表（専門教育科目）'!I26+'単位修得状況確認表（専門教育科目）'!I37+'単位修得状況確認表（専門教育科目）'!I51+'単位修得状況確認表（専門教育科目）'!I68","v":0},{"$f":"IF(E213=0,\"\",C213/E213)","v":""},{"$f":"D181-F213+G213","v":0},{"$f":"SUM('単位修得状況確認表（共通教育科目等）'!H42,'単位修得状況確認表（専門教育科目）'!H73)","v":0},{"$f":"SUM('単位修得状況確認表（共通教育科目等）'!H43,'単位修得状況確認表（専門教育科目）'!H74)","v":0}]
[null,"1年後期終了時",{"$f":"C213+'単位修得状況確認表（共通教育科目等）'!K18+'単位修得状況確認表（共通教育科目等）'!K38+'単位修得状況確認表（専門教育科目）'!K26+'単位修得状況確認表（専門教育科目）'!K37+'単位修得状況確認表（専門教育科目）'!K51+'単位修得状況確認表（専門教育科目）'!K68","v":0},"",{"$f":"D182-F214+G214","v":0},{"$f":"SUM(F213,'単位修得状況確認表（共通教育科目等）'!J42,'単位修得状況確認表（専門教育科目）'!J73)","v":0},{"$f":"SUM(G213,'単位修得状況確認表（共通教育科目等）'!J43,'単位修得状況確認表（専門教育科目）'!J74)","v":0}]
[null,"2年前期終了時",{"$f":"C214+'単位修得状況確認表（共通教育科目等）'!M18+'単位修得状況確認表（共通教育科目等）'!M38+'単位修得状況確認表（専門教育科目）'!M26+'単位修得状況確認表（専門教育科目）'!M37+'単位修得状況確認表（専門教育科目）'!M51+'単位修得状況確認表（専門教育科目）'!M68","v":0},"",{"$f":"D183-F215+G215","v":0},{"$f":"SUM(F214,'単位修得状況確認表（共通教育科目等）'!L42,'単位修得状況確認表（専門教育科目）'!L73)","v":0},{"$f":"SUM(G214,'単位修得状況確認表（共通教育科目等）'!L43,'単位修得状況確認表（専門教育科目）'!L74)","v":0}]
[null,"2年後期終了時",{"$f":"C215+'単位修得状況確認表（共通教育科目等）'!O18+'単位修得状況確認表（共通教育科目等）'!O38+'単位修得状況確認表（専門教育科目）'!O26+'単位修得状況確認表（専門教育科目）'!O37+'単位修得状況確認表（専門教育科目）'!O51+'単位修得状況確認表（専門教育科目）'!O68","v":0},"",0,{"$f":"SUM(F215,'単位修得状況確認表（共通教育科目等）'!N42,'単位修得状況確認表（専門教育科目）'!N73)","v":0},{"$f":"SUM(G215,'単位修得状況確認表（共通教育科目等）'!N43,'単位修得状況確認表（専門教育科目）'!N74)","v":0}]
[null,"３年前期終了時",{"$f":"C216+'単位修得状況確認表（共通教育科目等）'!Q18+'単位修得状況確認表（共通教育科目等）'!Q38+'単位修得状況確認表（専門教育科目）'!Q26+'単位修得状況確認表（専門教育科目）'!Q37+'単位修得状況確認表（専門教育科目）'!Q51+'単位修得状況確認表（専門教育科目）'!Q68","v":0},"",0,{"$f":"SUM(F216,'単位修得状況確認表（共通教育科目等）'!P42,'単位修得状況確認表（専門教育科目）'!P73)","v":0},{"$f":"SUM(G216,'単位修得状況確認表（共通教育科目等）'!P43,'単位修得状況確認表（専門教育科目）'!P74)","v":0}]
[null,"３年後期終了時",{"$f":"C217+'単位修得状況確認表（共通教育科目等）'!S18+'単位修得状況確認表（共通教育科目等）'!S38+'単位修得状況確認表（専門教育科目）'!S26+'単位修得状況確認表（専門教育科目）'!S37+'単位修得状況確認表（専門教育科目）'!S51+'単位修得状況確認表（専門教育科目）'!S68","v":0},"",0,{"$f":"SUM(F217,'単位修得状況確認表（共通教育科目等）'!R42,'単位修得状況確認表（専門教育科目）'!R73)","v":0},{"$f":"SUM(G217,'単位修得状況確認表（共通教育科目等）'!R43,'単位修得状況確認表（専門教育科目）'!R74)","v":0}]
[null,"4年前期終了時",{"$f":"C218+'単位修得状況確認表（共通教育科目等）'!T18+'単位修得状況確認表（共通教育科目等）'!T38+'単位修得状況確認表（専門教育科目）'!T26+'単位修得状況確認表（専門教育科目）'!T37+'単位修得状況確認表（専門教育科目）'!T51+'単位修得状況確認表（専門教育科目）'!T68","v":0},"",0,{"$f":"SUM(F218,'単位修得状況確認表（共通教育科目等）'!T42,'単位修得状況確認表（専門教育科目）'!T73)","v":0},{"$f":"SUM(G218,'単位修得状況確認表（共通教育科目等）'!T43,'単位修得状況確認表（専門教育科目）'!T74)","v":0}]
[null,"4年後期終了時",{"$f":"C219+'単位修得状況確認表（共通教育科目等）'!W18+'単位修得状況確認表（共通教育科目等）'!W38+'単位修得状況確認表（専門教育科目）'!W26+'単位修得状況確認表（専門教育科目）'!W37+'単位修得状況確認表（専門教育科目）'!W51+'単位修得状況確認表（専門教育科目）'!W68","v":0},"",0,{"$f":"SUM(F219,'単位修得状況確認表（共通教育科目等）'!V42,'単位修得状況確認表（専門教育科目）'!V73)","v":0},{"$f":"SUM(G219,'単位修得状況確認表（共通教育科目等）'!V43,'単位修得状況確認表（専門教育科目）'!V74)","v":0}]